{"text_format":"3","workbook":"xlsx","n_sheets":4,"sheets":["Accueil","Feuil2","Feuil3","Gain DGOS"],"not_rendered":{"images":1,"macros":1,"defined_names":6,"comments":1},"read":"whole","date_system":"1900"}

{"sheet":"Accueil","index":0,"n_rows":6,"n_cols":6,"rows_kept":6,"merged":[[0,0,1,2],[0,3,1,4],[0,5,1,5]]}
["Secteur",null,null,"Médicament",null,2015]
[]
[]
[]
["Marché UniHA",{"$nulls":3},"Marché Local"]
["PI Cardio-Dig 2015-019"]

{"sheet":"Feuil2","index":1,"n_rows":104,"n_cols":7,"rows_kept":104,"merged":[[0,0,1,7],[3,1,4,1],[3,2,4,6],[6,0,6,1],[9,2,9,5],[12,0,12,1],[12,4,12,5],[14,4,14,5],[16,4,16,5],[18,0,18,1],[18,2,18,4],[21,0,21,7],[23,0,23,1],[23,4,23,5],[25,4,25,5],[28,0,28,1],[30,0,30,1],[32,0,32,1],[34,4,34,5],[36,4,36,5],[38,4,38,5],[41,0,41,7],[43,0,43,1],[43,4,43,5],[45,0,45,1],[45,4,45,5],[47,0,47,1],[49,0,49,1],[49,2,49,6],[52,0,52,1],[52,4,52,5],[54,0,54,7],[56,0,56,1],[56,4,56,5],[58,0,58,1],[60,0,60,1],[60,4,60,5],[62,0,62,1],[64,0,64,1],[66,0,66,1],[68,0,68,1],[68,4,68,6],[72,0,72,7],[74,0,74,1],[74,4,74,5],[76,0,76,1],[76,4,76,5],[78,0,78,1],[78,4,78,5],[81,0,81,1],[83,0,83,1],[83,4,83,5],[85,4,85,5],[88,0,88,1],[90,0,90,1],[90,4,90,5],[92,4,92,5],[94,3,96,4],[99,0,99,7],[101,0,101,1],[103,0,103,1]]}
["UniHA"]
[]
[]
[null,"Types de Marché"]
[]
[]
["Référence Epicure",{"$nulls":4},"N° Procédure"]
[]
[]
[null,"Coordonnateur","Coordonnateur"]
[]
[]
["Date de début de marché",{"$nulls":3},"Date de fin de première période"]
[]
[{"$nulls":4},"Date de fin de marché"]
[]
[{"$nulls":4},"Nombre de mois ",null,12]
[]
["Types de leviers",null,"A selectionner ou saisie libre"]
[]
[]
["Préparation"]
[]
["Montant Cible",{"$nulls":3},"Gain cible",null,{"$f":"(C29/G17)*12","v":{"v":0,"d":"0.00 €"}}]
[]
[{"$nulls":4},"Gain Cible %"]
[]
[]
["Rendez-vous fournisseurs"]
[]
["Recensement des besoins",null,"du",null,"au"]
[]
["Nombre de réunion",null,3]
[]
["Reunion n°1",{"$nulls":3},"Compte Rendu n°1"]
[]
["Reunion n°2",{"$nulls":3},"Compte Rendu n°2"]
[]
["Reunion n°3",{"$nulls":3},"Compte Rendu n°3"]
[]
[]
["Publication"]
[]
["Nombre de lot",{"$nulls":3},"Nombre d'adhérent"]
[]
["Date de publication",{"$nulls":3},"Coût de la publication"]
[]
["DLRO"]
[]
["Etablissements experts"]
[]
[]
["Montant historique",{"$nulls":3},"Montant historique annualisé",null,{"$f":"(C53/G17)*12","v":{"v":0,"d":"0.00 €"}}]
[]
["Analyse des Offres"]
[]
["Date d'ouverture des plis",{"$nulls":3},"Nombre de fournisseurs"]
[]
["Nombres d'offres"]
[]
["Nombre de spécimens reçu",{"$nulls":3},"Coût d'envoi des spécimens"]
[]
["Nombre d'essais"]
[]
["Nombre d'iconographies reçu"]
[]
["Nombre de lots concurrentiels"]
[]
["Date de réunion du choix",{"$nulls":3},"Compte Rendu de la réunion de choix"]
[]
[]
[]
["Resultats"]
[]
["Nombre de fournisseurs retenus",{"$nulls":3},"Nombre d'offres sans suite"]
[]
["Nombre d'offres étudiées",{"$nulls":3},"Nombre d'offres irrégulières"]
[]
["Nombre de relances 35-I-1",{"$nulls":3},"Nombres de relances 35-II-3"]
[]
[]
["Montant Notifié Total"]
[]
["Gain réalisé total",{"$nulls":3},"Gain notifié (base 12 mois)",null,{"$f":"(C84/G17)*12","v":{"v":0,"d":"0.00 €"}}]
[]
[{"$nulls":4},"Gain notifié % ",null,{"$f":"IF(G53=0,\"\",G84/G53)","v":""}]
[]
[]
[{"$f":"\"Montant notifié \" & $C$10","v":"Montant notifié Coordonnateur"}]
[]
[{"$f":"\"Gain total \" & $C$10","v":"Gain total Coordonnateur"},{"$nulls":3},{"$f":"\"Gain notifié \" & $C$10","v":"Gain notifié Coordonnateur"},null,{"$f":"(C91/G17)*12","v":{"v":0,"d":"0.00 €"}}]
[]
[{"$nulls":4},{"$f":"\"Gain notifié \"& $C$10 & \" %\"","v":"Gain notifié Coordonnateur %"},null,{"$f":"IF(G53=0,\"\",G91/G53)","v":""}]
[]
[{"$nulls":3},"SWOT"]
[]
[]
[]
[]
["Suivie d'Execution"]
[]
["Nombres d'avenants"]
[]
["Gain Consolidé"]

{"sheet":"Feuil3","index":2,"n_rows":113,"n_cols":17,"rows_kept":113,"merged":[[12,3,12,12],[13,13,22,13],[15,3,15,6],[15,8,15,11],[20,3,20,6],[20,8,20,11],[142,16,143,16]]}
[]
[]
[]
[]
[]
["Montant historique","Montant notifié","Montant de reference annuel"]
[1,1,{"$f":"B7-A7","v":0}]
[]
[" % gain base 12 mois",{"$f":"IF($H:$H=0,\"0\",$J:$J/$H:$H)","v":"0"}]
[]
["Impact 2015",{"$f":"IF(MONTH($F:$F)=1,$J:$J,($J:$J/12)*(13-MONTH($F:$F)))","v":0}]
[]
["Impact à reporter 2016",{"$f":"$J:$J-$K:$K","v":0},null,"impact financier",{"$nulls":11},"Criticité du produit à l'hôpital","Note"]
[{"$nulls":7},10,{"$nulls":5},"criticité opérationnelle",null,"Le segment vise directement le soin du patient et/ou la sécurité sanitaire",12]
[{"$nulls":7},9,{"$nulls":7},"Le segment vise directement les conditions de travail des collaborateurs",23]
["Type de Leviers",null,null,{"$f":"IF(AND(Q19<5,Q28>=5),\"Achat Levier\",\"\")","v":""},{"$nulls":3},8,{"$f":"IF(AND(Q19>=5,Q28>=5),\"Achat Stratégique\",\"\")","v":""},{"$nulls":6},"Le segment est difficilement \"homogénéisable\" à l'ensemble des adhérents"]
["A selectionner ou saisie libre",{"$nulls":6},7,{"$nulls":7},"Le segment est assujettit au(x) rupture(s) d'approvisionnement(s)"]
["Action de progrès",{"$nulls":6},6,{"$nulls":7},"Nous sommes sur un marché fournisseur mature"]
["Action sur un marché ou sur les prix",null,null,1,2,3,4,5,6,7,8,9,10,{"$nulls":3},{"$f":"Q14+Q15+Q16+Q17+Q18","v":35}]
["Juste besoin",{"$nulls":6},4]
["Mutualisation ou Massification",null,null,{"$f":"IF(AND(Q19<5,Q28<5),\"Achat de Routine\",\"\")","v":""},{"$nulls":3},3,{"$f":"IF(AND(Q19>=5,Q28<5),\"Achat Mature\",\"\")","v":"Achat Mature"}]
["Optimisation des Stocks",{"$nulls":6},2,{"$nulls":7},"Impacts financiers de la procédure","Note"]
["Simplification du processus d'achat",{"$nulls":6},1,{"$nulls":7},"Sur ce segment, la massification est un levier majeur de gains sur achat"]
["Standardisation",{"$nulls":14},"La part logistique est importante dans le prix final"]
["Substitution",{"$nulls":14},"Les volumes d'UniHA sont un risque pour les fournisseurs"]
[{"$nulls":4},"  Achat de Routine",{"$nulls":5},"  Achat Stratégique",{"$nulls":4},"Le segment est en situation de monopole ou quasi-monopole"]
["Type de Marché",{"$nulls":14},"La part de matière première est importante"]
["Appel d'Offres",{"$nulls":3},"  Achat Levier",{"$nulls":5},"  Achat Mature",{"$nulls":5},{"$f":"Q23+Q26+Q27+Q24+Q25","v":0}]
["Marché négocié art. 35-I-1"]
["Marché négocié art. 35-II-3"]
["Marché négocié art. 35-II-8"]
["Accord cadre",{"$nulls":15},"0 = pas du tout"]
["Marché à procédure adapté",{"$nulls":15},"1= un peu"]
["Centrale d'achats",{"$nulls":15},"2= beaucoup"]
["Convention"]
[]
["Coordonnateur"]
["AP-HM"]
["Bordeaux"]
["Hospices Civils de Lyon"]
["Lille"]
["St-Etienne"]
["Toulouse"]
[]
[{"$nulls":4},"Secteur","Chef de Projets","Equipe de projets"]
[null,{"$f":"VLOOKUP($E:$E,Feuil3!$E$46:$G$559,2,TRUE)","v":"Marc Lambert"},{"$f":"VLOOKUP($E:$E,Feuil3!$E$46:$G$559,3,TRUE)","v":"CD"},null,"Médicament","Marc Lambert","CD"]
[]
[]
[]
[]
[]
["Séparateur","Ville"]
[", ","Aix en Provence"]
[null,"Amiens"]
[null,"Angers"]
[null,"Annecy-Genevois"]
[null,"AP-HM"]
[null,"AP-Hôpitaux de Paris"]
[null,"Avignon"]
[null,"Bayonne"]
[null,"Besançon"]
[null,"Bordeaux"]
[null,"Brest"]
[null,"Caen"]
[null,"Carcassonne"]
[null,"Clérmont-Ferrand"]
[null,"Compiègne-Noyon"]
[null,"Dieppe"]
[null,"Dijon"]
[null,"Elbeuf"]
[null,"Epinal"]
[null,"Eure Seine"]
[null,"Fort de France"]
[null,"Grenoble"]
[null,"HC Lyon"]
[null,"Hôpital Nord Franche Comté"]
[null,"La Roche sur Yon"]
[null,"La Rochelle-Ré-Aunis"]
[null,"Le Havre"]
[null,"Le Mans"]
[null,"Lens"]
[null,"Libourne"]
[null,"Lille"]
[null,"Limoges"]
[null,"Lorient"]
[null,"Metz-Thionville"]
[null,"Montpellier"]
[null,"Nancy"]
[null,"Nantes"]
[null,"Nice"]
[null,"Nîmes"]
[null,"Orléans"]
[null,"Paris - Saint-Anne"]
[null,"Perpignan"]
[null,"Pointe à Pitre"]
[null,"Poitiers"]
[null,"Pontoise"]
[null,"Quimper"]
[null,"Région de Mulhouse et Sud Alsace"]
[null,"Reims"]
[null,"Rennes"]
[null,"Réunion"]
[null,"Roubaix"]
[null,"Rouen"]
[null,"Saint-Etienne"]
[null,"Saint-Quentin"]
[null,"Strasbourg"]
[null,"Toulon"]
[null,"Toulouse"]
[null,"Tours"]
[null,"Troyes"]
[null,"Valenciennes"]
[null,"Villejuif Paul Guiraud"]

{"sheet":"Gain DGOS","index":3,"n_rows":1,"n_cols":17,"rows_kept":1}
["Intitulé du projet achats ","Type de leviers","Chef de projet Achat","Equipe projet","Segment \n(sélection ou saisie libre)","Date de notification (1)","Durée du marché ou de l'action de progrès en mois","Montant de référence annuel","Gains cible \nbase 12 mois","Gains réalisés base 12 mois","Impact 2015","Impact des gains 2015 à reporter sur 2016"," % gain base 12 mois (calculé)","Statut ","Points d'attention","Actions correctrices","Investissement/Exploitation"]